[Event "Titled Tuesday Blitz May 2 Late 2023"]
[White "Khripachenko, Alexander"]
[Black "Hansen, Eric"]
[WhiteFideId "54184975"]
[BlackFideId "2606771"]
[WhiteElo "2374"]
[BlackElo "2561"]
[Result "1/2-1/2"]
[Round "03"]
[TimeControl "180+2"]
[Date "2023.05.02"]
[WhiteClock "0:00:05"]
[BlackClock "0:00:02"]

1. e4 {[%clk 0:03:00]}  b6 {[%clk 0:02:59]} 2. d4 {[%clk 0:02:59]}  Bb7 {[%clk 0:02:59]} 3. Bd3 {[%clk 0:02:55]}  g6 {[%clk 0:02:59]} 4. Nf3 {[%clk 0:02:54]}  Bg7 {[%clk 0:03:00]} 5. O-O {[%clk 0:02:54]}  e6 {[%clk 0:03:00]} 6. Re1 {[%clk 0:02:54]}  d6 {[%clk 0:03:00]} 7. Nbd2 {[%clk 0:02:50]}  Ne7 {[%clk 0:02:58]} 8. Nf1 {[%clk 0:02:48]}  Nd7 {[%clk 0:02:57]} 9. h4 {[%clk 0:02:46]}  h6 {[%clk 0:02:57]} 10. Ng3 {[%clk 0:02:44]}  a6 {[%clk 0:02:53]} 11. c3 {[%clk 0:02:43]}  O-O {[%clk 0:02:49]} 12. Bc2 {[%clk 0:02:34]}  b5 {[%clk 0:02:48]} 13. a4 {[%clk 0:02:32]}  bxa4 {[%clk 0:02:39]} 14. Rxa4 {[%clk 0:02:28]}  a5 {[%clk 0:02:38]} 15. Be3 {[%clk 0:02:17]}  Nb6 {[%clk 0:02:37]} 16. Ra2 {[%clk 0:02:15]}  Nc4 {[%clk 0:01:58]} 17. Bc1 {[%clk 0:02:14]}  e5 {[%clk 0:01:56]} 18. Bd3 {[%clk 0:02:09]}  Nb6 {[%clk 0:01:55]} 19. dxe5 {[%clk 0:02:08]}  dxe5 {[%clk 0:01:54]} 20. Be3 {[%clk 0:02:02]}  Kh7 {[%clk 0:01:51]} 21. Bc5 {[%clk 0:01:56]}  Re8 {[%clk 0:01:49]} 22. Qe2 {[%clk 0:01:54]}  Nec8 {[%clk 0:01:34]} 23. h5 {[%clk 0:01:46]}  Nd6 {[%clk 0:01:33]} 24. hxg6+ {[%clk 0:01:45]}  fxg6 {[%clk 0:01:33]} 25. Rd1 {[%clk 0:01:41]}  Qf6 {[%clk 0:01:30]} 26. Bc2 {[%clk 0:01:22]}  Bf8 {[%clk 0:01:24]} 27. Nh2 {[%clk 0:01:10]}  Red8 {[%clk 0:00:56]} 28. Raa1 {[%clk 0:01:01]}  Ba6 {[%clk 0:00:44]} 29. Bd3 {[%clk 0:00:53]}  Bxd3 {[%clk 0:00:44]} 30. Rxd3 {[%clk 0:00:54]}  Qe6 {[%clk 0:00:39]} 31. Rad1 {[%clk 0:00:51]}  Be7 {[%clk 0:00:35]} 32. Ng4 {[%clk 0:00:47]}  Nf7 {[%clk 0:00:27]} 33. Bxe7 {[%clk 0:00:41]}  Rxd3 {[%clk 0:00:24]} 34. Rxd3 {[%clk 0:00:36]}  Qxe7 {[%clk 0:00:23]} 35. Ne3 {[%clk 0:00:24]}  Qe6 {[%clk 0:00:20]} 36. Ngf1 {[%clk 0:00:24]}  Kg7 {[%clk 0:00:19]} 37. Nd2 {[%clk 0:00:24]}  a4 {[%clk 0:00:17]} 38. Nf3 {[%clk 0:00:25]}  Re8 {[%clk 0:00:12]} 39. Nd5 {[%clk 0:00:20]}  Qc6 {[%clk 0:00:10]} 40. Nxb6 {[%clk 0:00:19]}  Qxb6 {[%clk 0:00:08]} 41. Rd5 {[%clk 0:00:19]}  Rb8 {[%clk 0:00:08]} 42. Nxe5 {[%clk 0:00:16]}  Nxe5 {[%clk 0:00:06]} 43. Rxe5 {[%clk 0:00:17]}  Qxb2 {[%clk 0:00:06]} 44. Qxb2 {[%clk 0:00:09]}  Rxb2 {[%clk 0:00:06]} 45. Re7+ {[%clk 0:00:10]}  Kf6 {[%clk 0:00:05]} 46. Rxc7 {[%clk 0:00:10]}  a3 {[%clk 0:00:03]} 47. Ra7 {[%clk 0:00:09]}  a2 {[%clk 0:00:03]} 48. Kh2 {[%clk 0:00:10]}  Rxf2 {[%clk 0:00:03]} 49. Kg3 {[%clk 0:00:10]}  Rc2 {[%clk 0:00:03]} 50. Kf4 {[%clk 0:00:02]}  g5+ {[%clk 0:00:03]} 51. Kg4 {[%clk 0:00:02]}  Rxg2+ {[%clk 0:00:03]} 52. Kf3 {[%clk 0:00:02]}  Rc2 {[%clk 0:00:03]} 53. Ra6+ {[%clk 0:00:03]}  Ke5 {[%clk 0:00:02]} 54. Ra5+ {[%clk 0:00:04]}  Kd6 {[%clk 0:00:03]} 55. Ra6+ {[%clk 0:00:05]}  Kc5 {[%clk 0:00:03]} 56. Ra8 {[%clk 0:00:05]}  Kc4 {[%clk 0:00:03]} 57. e5 {[%clk 0:00:04]}  Kxc3 {[%clk 0:00:02]} 58. e6 {[%clk 0:00:04]}  g4+ {[%clk 0:00:02]} 59. Kxg4 {[%clk 0:00:04]}  Re2 {[%clk 0:00:02]} 60. e7 {[%clk 0:00:03]}  Kb2 {[%clk 0:00:03]} 61. Rb8+ {[%clk 0:00:03]}  Kc1 {[%clk 0:00:02]} 62. Rc8+ {[%clk 0:00:04]}  Kb1 {[%clk 0:00:02]} 63. Rb8+ {[%clk 0:00:04]}  Kc1 {[%clk 0:00:02]} 64. Rc8+ {[%clk 0:00:04]}  Kd1 {[%clk 0:00:02]} 65. Rd8+ {[%clk 0:00:04]}  Kc1 {[%clk 0:00:02]} 66. Rc8+ {[%clk 0:00:05]} 1/2-1/2


[Site "https://www.chess.com"]

[Event "Titled Tuesday Blitz May 2 Late 2023"]
[White "Madaminov, Mukhiddin"]
[Black "Martinez Ramirez, Lennis"]
[WhiteFideId "14210703"]
[BlackFideId "3509079"]
[WhiteElo "2511"]
[BlackElo "2410"]
[Result "1-0"]
[Round "03"]
[TimeControl "180+2"]
[Date "2023.05.02"]
[WhiteClock "0:00:53"]
[BlackClock "0:00:07"]

1. d4 {[%clk 0:03:00]}  d5 {[%clk 0:02:59]} 2. Nc3 {[%clk 0:03:01]}  Nf6 {[%clk 0:02:58]} 3. Bf4 {[%clk 0:03:01]}  c6 {[%clk 0:02:58]} 4. e3 {[%clk 0:03:01]}  b5 {[%clk 0:02:58]} 5. Nf3 {[%clk 0:02:57]}  Bg4 {[%clk 0:02:54]} 6. h3 {[%clk 0:02:49]}  Bxf3 {[%clk 0:02:53]} 7. Qxf3 {[%clk 0:02:50]}  e6 {[%clk 0:02:53]} 8. g4 {[%clk 0:02:44]}  Bb4 {[%clk 0:02:50]} 9. Bd3 {[%clk 0:02:39]}  Qa5 {[%clk 0:02:29]} 10. g5 {[%clk 0:02:28]}  Bxc3+ {[%clk 0:02:21]} 11. bxc3 {[%clk 0:02:29]}  Qxc3+ {[%clk 0:02:21]} 12. Ke2 {[%clk 0:02:26]}  Ne4 {[%clk 0:02:21]} 13. Bxe4 {[%clk 0:02:25]}  dxe4 {[%clk 0:02:22]} 14. Qxe4 {[%clk 0:02:25]}  O-O {[%clk 0:02:11]} 15. a4 {[%clk 0:02:25]}  Nd7 {[%clk 0:01:50]} 16. Qd3 {[%clk 0:02:17]}  Qb4 {[%clk 0:00:51]} 17. Rhb1 {[%clk 0:02:15]}  Qe7 {[%clk 0:00:51]} 18. axb5 {[%clk 0:02:16]}  cxb5 {[%clk 0:00:51]} 19. Rxb5 {[%clk 0:02:15]}  Rfc8 {[%clk 0:00:43]} 20. Rb7 {[%clk 0:02:09]}  e5 {[%clk 0:00:39]} 21. dxe5 {[%clk 0:02:04]}  Rd8 {[%clk 0:00:35]} 22. Raxa7 {[%clk 0:02:04]}  Rxa7 {[%clk 0:00:35]} 23. Rxa7 {[%clk 0:02:05]}  Qe6 {[%clk 0:00:35]} 24. e4 {[%clk 0:01:46]}  Qe8 {[%clk 0:00:23]} 25. Qb5 {[%clk 0:01:34]}  Qe6 {[%clk 0:00:22]} 26. Qb3 {[%clk 0:01:31]}  Qe8 {[%clk 0:00:21]} 27. Kf3 {[%clk 0:01:23]}  Nc5 {[%clk 0:00:21]} 28. Qc4 {[%clk 0:01:17]}  Ne6 {[%clk 0:00:21]} 29. Be3 {[%clk 0:01:18]}  Rc8 {[%clk 0:00:21]} 30. Qa4 {[%clk 0:01:16]}  Qd8 {[%clk 0:00:17]} 31. Qd7 {[%clk 0:01:15]}  Qf8 {[%clk 0:00:17]} 32. Qd3 {[%clk 0:00:59]}  h6 {[%clk 0:00:16]} 33. gxh6 {[%clk 0:00:58]}  g5 {[%clk 0:00:16]} 34. Qd7 {[%clk 0:00:56]}  Rd8 {[%clk 0:00:15]} 35. h7+ {[%clk 0:00:53]}  Kg7 {[%clk 0:00:15]} 36. h8=Q+ {[%clk 0:00:52]}  Kxh8 {[%clk 0:00:12]} 37. Qxf7 {[%clk 0:00:53]}  Qh6 {[%clk 0:00:08]} 38. Qf6+ {[%clk 0:00:52]}  Qxf6+ {[%clk 0:00:08]} 39. exf6 {[%clk 0:00:53]}  Rf8 {[%clk 0:00:08]} 40. e5 {[%clk 0:00:53]}  Rc8 {[%clk 0:00:08]} 41. Ke4 {[%clk 0:00:53]}  g4 {[%clk 0:00:07]} 42. hxg4 {[%clk 0:00:53]} 1-0


[Site "https://www.chess.com"]

[Event "Titled Tuesday Blitz May 2 Late 2023"]
[White "Stearman, Josiah"]
[Black "Kramnik, Vladimir"]
[WhiteFideId "2062496"]
[BlackFideId "4101588"]
[WhiteElo "2393"]
[BlackElo "2712"]
[Result "0-1"]
[Round "03"]
[TimeControl "180+2"]
[Date "2023.05.02"]
[WhiteClock "0:00:03"]
[BlackClock "0:00:38"]

1. e4 {[%clk 0:03:00]}  c5 {[%clk 0:02:59]} 2. Nc3 {[%clk 0:03:01]}  e6 {[%clk 0:02:59]} 3. g3 {[%clk 0:03:01]}  Nc6 {[%clk 0:02:57]} 4. Bg2 {[%clk 0:03:02]}  Nf6 {[%clk 0:02:56]} 5. d3 {[%clk 0:03:03]}  Be7 {[%clk 0:02:55]} 6. Nge2 {[%clk 0:02:55]}  O-O {[%clk 0:02:54]} 7. O-O {[%clk 0:02:53]}  Rb8 {[%clk 0:02:54]} 8. d4 {[%clk 0:02:50]}  cxd4 {[%clk 0:02:53]} 9. Nxd4 {[%clk 0:02:51]}  d6 {[%clk 0:02:53]} 10. Be3 {[%clk 0:02:46]}  a6 {[%clk 0:02:47]} 11. Nxc6 {[%clk 0:02:44]}  bxc6 {[%clk 0:02:46]} 12. e5 {[%clk 0:02:44]}  dxe5 {[%clk 0:02:43]} 13. Bxc6 {[%clk 0:02:44]}  Rxb2 {[%clk 0:02:40]} 14. Na4 {[%clk 0:02:35]}  Qc7 {[%clk 0:02:34]} 15. Nxb2 {[%clk 0:02:20]}  Qxc6 {[%clk 0:02:33]} 16. Nd3 {[%clk 0:02:17]}  Bb7 {[%clk 0:02:27]} 17. f3 {[%clk 0:02:18]}  Ng4 {[%clk 0:02:20]} 18. Qe2 {[%clk 0:01:50]}  e4 {[%clk 0:02:20]} 19. Nb4 {[%clk 0:01:38]}  Bxb4 {[%clk 0:02:08]} 20. fxg4 {[%clk 0:01:38]}  a5 {[%clk 0:02:05]} 21. Rab1 {[%clk 0:01:35]}  Ba6 {[%clk 0:02:03]} 22. c4 {[%clk 0:01:29]}  Qxc4 {[%clk 0:02:02]} 23. Qf2 {[%clk 0:01:06]}  Qd5 {[%clk 0:01:55]} 24. Rfd1 {[%clk 0:01:00]}  Bd3 {[%clk 0:01:55]} 25. Rdc1 {[%clk 0:01:00]}  Bxb1 {[%clk 0:01:52]} 26. Rxb1 {[%clk 0:00:57]}  h6 {[%clk 0:01:51]} 27. Rc1 {[%clk 0:00:56]}  Rd8 {[%clk 0:01:43]} 28. Kg2 {[%clk 0:00:53]}  f6 {[%clk 0:01:33]} 29. Rc7 {[%clk 0:00:50]}  Rd7 {[%clk 0:01:19]} 30. Rc8+ {[%clk 0:00:49]}  Kh7 {[%clk 0:01:19]} 31. Kh3 {[%clk 0:00:48]}  h5 {[%clk 0:01:14]} 32. Qf4 {[%clk 0:00:21]}  Bd6 {[%clk 0:01:03]} 33. Qf1 {[%clk 0:00:16]}  Qd3 {[%clk 0:00:53]} 34. Qf2 {[%clk 0:00:10]}  hxg4+ {[%clk 0:00:50]} 35. Kxg4 {[%clk 0:00:10]}  Qd1+ {[%clk 0:00:50]} 36. Kh4 {[%clk 0:00:09]}  Be5 {[%clk 0:00:43]} 37. g4 {[%clk 0:00:03]}  Qf3 {[%clk 0:00:40]} 38. Qe1 {[%clk 0:00:02]}  g5+ {[%clk 0:00:39]} 39. Bxg5 {[%clk 0:00:02]}  fxg5+ {[%clk 0:00:38]} 40. Kxg5 {[%clk 0:00:03]}  Qf6+ {[%clk 0:00:38]} 0-1


[Site "https://www.chess.com"]

[Event "Titled Tuesday Blitz May 2 Late 2023"]
[White "Zhigalko, Sergei"]
[Black "Iliaguev, Nisim"]
[WhiteFideId "13502956"]
[BlackFideId "2817276"]
[WhiteElo "2626"]
[BlackElo "2241"]
[Result "1-0"]
[Round "03"]
[TimeControl "180+2"]
[Date "2023.05.02"]
[WhiteClock "0:01:57"]
[BlackClock "0:01:25"]

1. e4 {[%clk 0:03:00]}  c6 {[%clk 0:02:59]} 2. d4 {[%clk 0:03:00]}  d5 {[%clk 0:02:59]} 3. e5 {[%clk 0:03:00]}  Bf5 {[%clk 0:02:59]} 4. Nf3 {[%clk 0:03:00]}  e6 {[%clk 0:02:59]} 5. Be2 {[%clk 0:03:00]}  Ne7 {[%clk 0:02:59]} 6. O-O {[%clk 0:03:00]}  c5 {[%clk 0:02:59]} 7. dxc5 {[%clk 0:02:58]}  Nd7 {[%clk 0:02:54]} 8. Be3 {[%clk 0:02:53]}  Nc6 {[%clk 0:02:54]} 9. c4 {[%clk 0:02:50]}  dxc4 {[%clk 0:02:51]} 10. Na3 {[%clk 0:02:49]}  Bxc5 {[%clk 0:02:47]} 11. Nxc4 {[%clk 0:02:48]}  O-O {[%clk 0:02:32]} 12. Qc1 {[%clk 0:02:44]}  Rc8 {[%clk 0:02:25]} 13. Bxc5 {[%clk 0:02:40]}  Nxc5 {[%clk 0:02:23]} 14. Nd6 {[%clk 0:02:40]}  Bd3 {[%clk 0:01:47]} 15. Bxd3 {[%clk 0:02:08]}  Nxd3 {[%clk 0:01:48]} 16. Qe3 {[%clk 0:02:08]}  Nxb2 {[%clk 0:01:24]} 17. Nxc8 {[%clk 0:01:58]}  Qxc8 {[%clk 0:01:25]} 18. Qb3 {[%clk 0:01:57]} 1-0


[Site "https://www.chess.com"]

[Event "Titled Tuesday Blitz May 2 Late 2023"]
[White "Ivic, Velimir"]
[Black "Sai Krishna G V"]
[WhiteFideId "950122"]
[BlackFideId "5028280"]
[WhiteElo "2563"]
[BlackElo "2359"]
[Result "0-1"]
[Round "03"]
[TimeControl "180+2"]
[Date "2023.05.02"]
[WhiteClock "0:01:00"]
[BlackClock "0:01:57"]

1. e4 {[%clk 0:03:00]}  e5 {[%clk 0:02:57]} 2. Nf3 {[%clk 0:03:01]}  Nc6 {[%clk 0:02:57]} 3. Bb5 {[%clk 0:03:01]}  a6 {[%clk 0:02:57]} 4. Ba4 {[%clk 0:03:01]}  d6 {[%clk 0:02:58]} 5. O-O {[%clk 0:03:00]}  Nf6 {[%clk 0:02:58]} 6. c3 {[%clk 0:02:57]}  Be7 {[%clk 0:02:57]} 7. Re1 {[%clk 0:02:56]}  b5 {[%clk 0:02:55]} 8. Bc2 {[%clk 0:02:54]}  O-O {[%clk 0:02:56]} 9. h3 {[%clk 0:02:53]}  Bb7 {[%clk 0:02:53]} 10. d4 {[%clk 0:02:53]}  exd4 {[%clk 0:02:54]} 11. cxd4 {[%clk 0:02:51]}  Nb4 {[%clk 0:02:55]} 12. Nc3 {[%clk 0:02:52]}  c5 {[%clk 0:02:51]} 13. Bb1 {[%clk 0:02:51]}  Nd7 {[%clk 0:02:49]} 14. d5 {[%clk 0:02:48]}  c4 {[%clk 0:02:40]} 15. a3 {[%clk 0:02:48]}  Qa5 {[%clk 0:02:40]} 16. axb4 {[%clk 0:02:22]}  Qxa1 {[%clk 0:02:38]} 17. Qc2 {[%clk 0:02:23]}  a5 {[%clk 0:02:32]} 18. e5 {[%clk 0:02:22]}  g6 {[%clk 0:02:33]} 19. e6 {[%clk 0:02:06]}  fxe6 {[%clk 0:02:18]} 20. Rxe6 {[%clk 0:02:06]}  Bf6 {[%clk 0:02:19]} 21. Rxd6 {[%clk 0:01:54]}  axb4 {[%clk 0:02:11]} 22. Rxd7 {[%clk 0:01:53]}  bxc3 {[%clk 0:02:08]} 23. Rxb7 {[%clk 0:01:12]}  cxb2 {[%clk 0:02:06]} 24. Bh6 {[%clk 0:01:05]}  Qxb1+ {[%clk 0:02:03]} 25. Qxb1 {[%clk 0:01:06]}  Ra1 {[%clk 0:02:02]} 26. Nd2 {[%clk 0:01:00]}  c3 {[%clk 0:01:57]} 0-1


[Site "https://www.chess.com"]

[Event "Titled Tuesday Blitz May 2 Late 2023"]
[White "Rosen, Eric"]
[Black "Babazada, Khazar"]
[WhiteFideId "2032562"]
[BlackFideId "13413554"]
[WhiteElo "2331"]
[BlackElo "2351"]
[Result "0-1"]
[Round "03"]
[TimeControl "180+2"]
[Date "2023.05.02"]
[WhiteClock "0:00:01"]
[BlackClock "0:00:24"]

1. d4 {[%clk 0:03:00]}  Nf6 {[%clk 0:02:44]} 2. Bf4 {[%clk 0:03:01]}  d5 {[%clk 0:02:44]} 3. e3 {[%clk 0:03:01]}  e6 {[%clk 0:02:44]} 4. Nf3 {[%clk 0:03:02]}  Bd6 {[%clk 0:02:44]} 5. Ne5 {[%clk 0:03:03]}  Nfd7 {[%clk 0:02:44]} 6. c4 {[%clk 0:02:59]}  dxc4 {[%clk 0:02:41]} 7. Nc3 {[%clk 0:02:58]}  Nc6 {[%clk 0:02:39]} 8. Nxc6 {[%clk 0:02:55]}  bxc6 {[%clk 0:02:40]} 9. Bg3 {[%clk 0:02:55]}  Nb6 {[%clk 0:02:35]} 10. Be2 {[%clk 0:02:22]}  O-O {[%clk 0:02:08]} 11. O-O {[%clk 0:02:21]}  a5 {[%clk 0:02:04]} 12. Bf3 {[%clk 0:02:17]}  Qd7 {[%clk 0:02:02]} 13. Rc1 {[%clk 0:02:15]}  a4 {[%clk 0:02:00]} 14. a3 {[%clk 0:02:14]}  Bb7 {[%clk 0:01:49]} 15. Ne4 {[%clk 0:02:10]}  Rfb8 {[%clk 0:01:49]} 16. Nc5 {[%clk 0:01:54]}  Qe8 {[%clk 0:01:33]} 17. Re1 {[%clk 0:01:40]}  Ra5 {[%clk 0:01:27]} 18. Qd2 {[%clk 0:01:32]}  Rb5 {[%clk 0:01:27]} 19. Rc2 {[%clk 0:01:29]}  Bc8 {[%clk 0:01:25]} 20. Ne4 {[%clk 0:01:24]}  Qe7 {[%clk 0:01:21]} 21. Nc3 {[%clk 0:01:21]}  Bd7 {[%clk 0:01:10]} 22. Nxb5 {[%clk 0:01:15]}  cxb5 {[%clk 0:01:09]} 23. e4 {[%clk 0:01:16]}  Bxg3 {[%clk 0:01:06]} 24. hxg3 {[%clk 0:01:17]}  e5 {[%clk 0:01:07]} 25. Rd1 {[%clk 0:01:11]}  exd4 {[%clk 0:00:58]} 26. Qxd4 {[%clk 0:01:11]}  Be6 {[%clk 0:00:59]} 27. Qe5 {[%clk 0:00:57]}  Nc8 {[%clk 0:00:52]} 28. Bg4 {[%clk 0:00:52]}  Bxg4 {[%clk 0:00:47]} 29. f3 {[%clk 0:00:42]}  Be6 {[%clk 0:00:45]} 30. f4 {[%clk 0:00:38]}  f6 {[%clk 0:00:35]} 31. Qd4 {[%clk 0:00:27]}  Nd6 {[%clk 0:00:34]} 32. Qa7 {[%clk 0:00:24]}  Re8 {[%clk 0:00:33]} 33. Re1 {[%clk 0:00:14]}  Bd5 {[%clk 0:00:33]} 34. e5 {[%clk 0:00:12]}  Nf5 {[%clk 0:00:32]} 35. Qf2 {[%clk 0:00:10]}  Qd7 {[%clk 0:00:22]} 36. g4 {[%clk 0:00:09]}  Nh6 {[%clk 0:00:22]} 37. g5 {[%clk 0:00:03]}  Ng4 {[%clk 0:00:22]} 38. Qg3 {[%clk 0:00:03]}  fxe5 {[%clk 0:00:23]} 39. fxe5 {[%clk 0:00:02]}  Rf8 {[%clk 0:00:22]} 40. Rce2 {[%clk 0:00:02]}  Be6 {[%clk 0:00:21]} 41. Re4 {[%clk 0:00:01]}  Qd2 {[%clk 0:00:21]} 42. R4e2 {[%clk 0:00:02]}  Qd4+ {[%clk 0:00:21]} 43. Kh1 {[%clk 0:00:02]}  Nf2+ {[%clk 0:00:22]} 44. Kh2 {[%clk 0:00:02]}  Nd3 {[%clk 0:00:22]} 45. Re4 {[%clk 0:00:02]}  Qxb2 {[%clk 0:00:23]} 46. R1e2 {[%clk 0:00:02]}  Qxa3 {[%clk 0:00:23]} 47. g6 {[%clk 0:00:02]}  h6 {[%clk 0:00:23]} 48. Rh4 {[%clk 0:00:02]}  Qe7 {[%clk 0:00:23]} 49. Rd2 {[%clk 0:00:01]}  Rf5 {[%clk 0:00:24]} 50. Re2 {[%clk 0:00:01]}  Rg5 {[%clk 0:00:24]} 0-1


[Site "https://www.chess.com"]

[Event "Titled Tuesday Blitz May 2 Late 2023"]
[White "Osinenko, Anton"]
[Black "Livaic, Leon"]
[WhiteFideId "4158970"]
[BlackFideId "14531534"]
[WhiteElo "2294"]
[BlackElo "2509"]
[Result "0-1"]
[Round "03"]
[TimeControl "180+2"]
[Date "2023.05.02"]
[WhiteClock "0:00:17"]
[BlackClock "0:00:22"]

1. e4 {[%clk 0:03:00]}  c5 {[%clk 0:02:59]} 2. Nf3 {[%clk 0:03:00]}  e6 {[%clk 0:03:00]} 3. c3 {[%clk 0:03:00]}  d5 {[%clk 0:02:58]} 4. exd5 {[%clk 0:03:01]}  exd5 {[%clk 0:02:58]} 5. d4 {[%clk 0:03:01]}  Nf6 {[%clk 0:02:58]} 6. Bd3 {[%clk 0:03:00]}  Nc6 {[%clk 0:02:56]} 7. O-O {[%clk 0:03:01]}  cxd4 {[%clk 0:02:54]} 8. Nxd4 {[%clk 0:03:00]}  Nxd4 {[%clk 0:02:47]} 9. cxd4 {[%clk 0:03:01]}  Be7 {[%clk 0:02:41]} 10. Nc3 {[%clk 0:02:51]}  O-O {[%clk 0:02:42]} 11. h3 {[%clk 0:02:51]}  h6 {[%clk 0:02:33]} 12. Bf4 {[%clk 0:02:51]}  Bb4 {[%clk 0:02:32]} 13. Qb3 {[%clk 0:02:40]}  Qa5 {[%clk 0:02:24]} 14. Rac1 {[%clk 0:02:28]}  Be6 {[%clk 0:02:22]} 15. a3 {[%clk 0:02:26]}  Bxc3 {[%clk 0:02:22]} 16. Rxc3 {[%clk 0:02:20]}  Ne4 {[%clk 0:02:17]} 17. Rc2 {[%clk 0:02:13]}  Rac8 {[%clk 0:02:04]} 18. Rfc1 {[%clk 0:02:06]}  Rxc2 {[%clk 0:02:03]} 19. Qxc2 {[%clk 0:02:05]}  Qb6 {[%clk 0:01:57]} 20. Be3 {[%clk 0:01:44]}  Nd6 {[%clk 0:01:52]} 21. b3 {[%clk 0:01:33]}  Rc8 {[%clk 0:01:44]} 22. Qb2 {[%clk 0:01:33]}  Rxc1+ {[%clk 0:01:41]} 23. Bxc1 {[%clk 0:01:34]}  Bf5 {[%clk 0:01:41]} 24. Be2 {[%clk 0:01:29]}  Bg6 {[%clk 0:01:28]} 25. Bd2 {[%clk 0:01:18]}  Nc4 {[%clk 0:01:08]} 26. Bxc4 {[%clk 0:01:04]}  dxc4 {[%clk 0:01:08]} 27. b4 {[%clk 0:01:05]}  Qc6 {[%clk 0:01:09]} 28. Bc3 {[%clk 0:01:00]}  f6 {[%clk 0:01:03]} 29. Qd2 {[%clk 0:00:59]}  Qd5 {[%clk 0:00:58]} 30. Qf4 {[%clk 0:00:58]}  Kh7 {[%clk 0:00:56]} 31. Qc7 {[%clk 0:00:56]}  b5 {[%clk 0:00:37]} 32. f3 {[%clk 0:00:56]}  Qg5 {[%clk 0:00:34]} 33. Be1 {[%clk 0:00:31]}  Qc1 {[%clk 0:00:33]} 34. Kf2 {[%clk 0:00:31]}  Qb2+ {[%clk 0:00:29]} 35. Ke3 {[%clk 0:00:28]}  Qxa3+ {[%clk 0:00:27]} 36. Kf2 {[%clk 0:00:25]}  Qb2+ {[%clk 0:00:27]} 37. Ke3 {[%clk 0:00:24]}  Qa1 {[%clk 0:00:25]} 38. Bd2 {[%clk 0:00:22]}  Qg1+ {[%clk 0:00:24]} 39. Ke2 {[%clk 0:00:17]}  Bd3# {[%clk 0:00:22]} 0-1


[Site "https://www.chess.com"]

[Event "Titled Tuesday Blitz May 2 Late 2023"]
[White "Aldokhin, Ivan"]
[Black "Bakalchuk, Johnatan"]
[WhiteFideId "24115720"]
[BlackFideId "2810301"]
[WhiteElo "2322"]
[BlackElo "2450"]
[Result "1/2-1/2"]
[Round "03"]
[TimeControl "180+2"]
[Date "2023.05.02"]
[WhiteClock "0:00:06"]
[BlackClock "0:00:03"]

1. e4 {[%clk 0:02:59]}  g6 {[%clk 0:03:00]} 2. d4 {[%clk 0:02:59]}  Nf6 {[%clk 0:03:01]} 3. Nc3 {[%clk 0:03:00]}  d5 {[%clk 0:03:01]} 4. e5 {[%clk 0:02:59]}  Ne4 {[%clk 0:03:01]} 5. Nxe4 {[%clk 0:02:56]}  dxe4 {[%clk 0:03:01]} 6. c3 {[%clk 0:02:56]}  c5 {[%clk 0:03:01]} 7. Bc4 {[%clk 0:02:55]}  Nc6 {[%clk 0:03:00]} 8. Be3 {[%clk 0:02:55]}  cxd4 {[%clk 0:02:53]} 9. cxd4 {[%clk 0:02:55]}  Qa5+ {[%clk 0:02:54]} 10. Kf1 {[%clk 0:02:55]}  Bg7 {[%clk 0:02:40]} 11. Ne2 {[%clk 0:02:39]}  O-O {[%clk 0:02:40]} 12. Ng3 {[%clk 0:02:34]}  Rd8 {[%clk 0:02:19]} 13. Qb3 {[%clk 0:02:14]}  Nxd4 {[%clk 0:02:17]} 14. Bxf7+ {[%clk 0:02:10]}  Kf8 {[%clk 0:01:56]} 15. Bxd4 {[%clk 0:01:48]}  Rxd4 {[%clk 0:01:55]} 16. Bc4 {[%clk 0:00:57]}  Qxe5 {[%clk 0:01:49]} 17. h4 {[%clk 0:00:47]}  Bd7 {[%clk 0:01:45]} 18. Be2 {[%clk 0:00:41]}  h5 {[%clk 0:01:25]} 19. Qxb7 {[%clk 0:00:17]}  Rb8 {[%clk 0:01:22]} 20. Qxa7 {[%clk 0:00:16]}  Rxb2 {[%clk 0:01:19]} 21. Rd1 {[%clk 0:00:12]}  Rxd1+ {[%clk 0:01:04]} 22. Bxd1 {[%clk 0:00:13]}  Bb5+ {[%clk 0:00:54]} 23. Kg1 {[%clk 0:00:13]}  Qd4 {[%clk 0:00:50]} 24. Qxd4 {[%clk 0:00:08]}  Bxd4 {[%clk 0:00:50]} 25. Nxe4 {[%clk 0:00:09]}  Bc6 {[%clk 0:00:35]} 26. Bf3 {[%clk 0:00:09]}  Rxa2 {[%clk 0:00:20]} 27. Kh2 {[%clk 0:00:09]}  Bxf2 {[%clk 0:00:17]} 28. Nxf2 {[%clk 0:00:04]}  Bxf3 {[%clk 0:00:17]} 29. gxf3 {[%clk 0:00:04]}  Rxf2+ {[%clk 0:00:17]} 30. Kg3 {[%clk 0:00:05]}  Ra2 {[%clk 0:00:17]} 31. Rb1 {[%clk 0:00:05]}  Kf7 {[%clk 0:00:17]} 32. Rb7 {[%clk 0:00:05]}  Ra1 {[%clk 0:00:16]} 33. Rb6 {[%clk 0:00:06]}  Rg1+ {[%clk 0:00:15]} 34. Kf2 {[%clk 0:00:06]}  Rd1 {[%clk 0:00:16]} 35. Kg3 {[%clk 0:00:06]}  Rd6 {[%clk 0:00:16]} 36. Rb5 {[%clk 0:00:06]}  Kf6 {[%clk 0:00:17]} 37. Rb8 {[%clk 0:00:07]}  Re6 {[%clk 0:00:17]} 38. Rf8+ {[%clk 0:00:07]}  Ke5 {[%clk 0:00:18]} 39. Rg8 {[%clk 0:00:07]}  Kd4 {[%clk 0:00:18]} 40. Kf4 {[%clk 0:00:06]}  Rf6+ {[%clk 0:00:18]} 41. Kg5 {[%clk 0:00:04]}  Rxf3 {[%clk 0:00:19]} 42. Rxg6 {[%clk 0:00:04]}  e5 {[%clk 0:00:12]} 43. Kxh5 {[%clk 0:00:04]}  e4 {[%clk 0:00:13]} 44. Kg4 {[%clk 0:00:04]}  Rf1 {[%clk 0:00:12]} 45. Rd6+ {[%clk 0:00:04]}  Kc3 {[%clk 0:00:09]} 46. h5 {[%clk 0:00:03]}  e3 {[%clk 0:00:09]} 47. Re6 {[%clk 0:00:03]}  Kd2 {[%clk 0:00:09]} 48. h6 {[%clk 0:00:04]}  e2 {[%clk 0:00:06]} 49. Kg5 {[%clk 0:00:04]}  Rh1 {[%clk 0:00:02]} 50. Kg6 {[%clk 0:00:04]}  e1=Q {[%clk 0:00:01]} 51. Rxe1 {[%clk 0:00:04]}  Kxe1 {[%clk 0:00:02]} 52. h7 {[%clk 0:00:04]}  Rg1+ {[%clk 0:00:03]} 53. Kf7 {[%clk 0:00:04]}  Rh1 {[%clk 0:00:03]} 54. Kg7 {[%clk 0:00:05]}  Kf2 {[%clk 0:00:04]} 55. h8=Q {[%clk 0:00:05]}  Rxh8 {[%clk 0:00:03]} 56. Kxh8 {[%clk 0:00:06]} 1/2-1/2


[Site "https://www.chess.com"]